bitfinex/quotes_ETHUSD_20250106
["timestamp","ask_amount","ask_price","bid_price","bid_amount"]
[1736185400660,2.73246,3659.7,3659.6,0.7945]
[1736185401323,0.7922,3660.6,3659.6,0.7945]
[1736185401523,2.73234,3659.9,3659.6,0.7945]
[1736185401705,2.73176,3660.7,3659.6,0.7945]
[1736185401906,2.73205,3660.3,3659.7,0.02732156]
[1736185402152,2.73211,3660.2,3659.6,0.7945]
[1736185402666,2.73219,3660.1,3659.6,0.7945]
[1736185403035,2.73219,3660.1,3659.7,0.02732155]
[1736185405372,2.73219,3660.1,3659.6,0.7945]
[1736185405568,2.73219,3660.1,3659.7,0.02732156]
[1736185406070,0.7808,3661.4,3659.7,0.02732156]
[1736185406254,2.73165,3660.8,3659.8,0.7581]
[1736185406589,3.70972154,3661.3,3659.8,0.7581]
[1736185406762,2.73172,3660.7,3659.8,0.7581]
[1736185406931,3.70972154,3661.3,3659.8,0.7581]
[1736185407288,0.72217515,3661.2,3659.8,0.7581]
[1736185407434,2.73179,3660.7,3659.9,0.02731785]
[1736185407630,2.73149,3661.0,3659.8,0.7581]
[1736185407832,2.73202,3660.3,3659.8,0.7581]
[1736185408030,2.73169,3660.8,3659.9,0.02732011]
[1736185408243,2.73156,3661.0,3659.9,2.75959011]
[1736185408532,2.73129,3661.3,3660.3,0.8134]
[1736185408757,2.73082,3661.9,3660.5,0.8134]
[1736185408956,2.73089,3661.9,3660.8,2.73164]
[1736185409197,1.10345278,3662.1,3661.0,0.8134]
[1736185409676,2.73127,3661.3,3661.0,0.8134]
[1736185410722,2.73157,3660.9,3659.8,2.73238]
[1736185410862,2.73154,3661.0,3659.9,3.57300713]
[1736185411060,2.73154,3661.0,3660.0,0.35730071]
[1736185412418,2.73062,3662.2,3660.9,0.8134]
[1736185412561,2.73044,3662.5,3661.2,0.8134]
[1736185412763,1.10345278,3662.7,3661.8,0.8134]
[1736185412977,0.7778,3663.3,3661.9,2.75810452]
[1736185413173,3.0,3663.3,3661.8,0.8134]
[1736185413378,3.09361307,3662.6,3661.8,0.8134]
[1736185413622,2.7307,3662.1,3661.8,0.8134]
[1736185414132,0.27307,3662.1,3660.9,0.8134]
[1736185414257,3.36668307,3662.1,3660.9,0.8134]
[1736185414461,2.73142,3661.1,3660.9,0.8134]
[1736185414684,2.73127,3661.3,3660.9,0.8134]
[1736185415120,3.09361307,3661.7,3660.9,0.8134]
[1736185415121,3.36668307,3662.1,3660.9,0.8134]
[1736185415277,0.7565,3662.4,3661.0,0.02731075]
[1736185415620,2.73098,3661.7,3661.0,0.02731075]
[1736185415765,2.73107,3661.6,3660.9,0.8134]
[1736185415962,5.05095278,3662.8,3660.9,0.8134]
[1736185415963,3.09361307,3662.5,3660.9,0.8134]
[1736185416167,2.73071,3662.1,3661.2,0.7817]
[1736185416377,6.31939966,3662.5,3661.2,0.7817]
[1736185416572,0.49535659,3662.5,3661.2,0.7817]
[1736185416885,2.73037,3662.6,3661.8,0.7817]
[1736185417085,2.73037,3662.6,3661.9,0.02730448]
[1736185417284,4.74879224,3663.3,3661.9,0.02730448]
[1736185417486,3.09361307,3662.9,3661.8,0.7817]
[1736185417713,2.73081,3662.0,3661.8,0.7817]
[1736185417933,2.7308,3662.0,3661.8,0.7817]
[1736185418491,3.09361307,3662.5,3661.8,0.7817]
[1736185418694,3.40297438,3662.5,3661.8,0.7817]
[1736185418912,2.7306,3662.2,3661.8,0.7817]
[1736185419111,3.0,3663.2,3661.8,0.7817]
[1736185419112,1.10345278,3663.0,3661.8,0.7817]
[1736185419684,2.73029,3662.7,3661.8,0.7817]
[1736185419993,0.273029,3662.6,3661.8,0.7817]
[1736185420599,3.003359,3662.6,3661.8,0.7817]
[1736185420791,2.72999,3663.1,3661.9,0.0273035]
[1736185421008,2.72999,3663.1,3662.0,0.7805]
[1736185421204,3.09361307,3663.4,3662.1,0.02730081]
[1736185421413,2.72995,3663.1,3662.1,0.02730081]
[1736185421628,3.09361307,3663.4,3662.1,0.02730081]
[1736185421924,2.73002,3663.0,3662.1,0.02730081]
[1736185422138,0.41970658,3663.3,3662.1,2.75796081]
[1736185422313,1.10345278,3663.6,3662.2,0.7805]
[1736185422514,1.10345278,3663.6,3662.5,0.7805]
[1736185422719,3.09361307,3664.4,3662.5,0.7805]
[1736185422720,2.72963,3663.5,3662.5,0.7805]
[1736185423018,1.10345278,3663.9,3662.5,0.7805]
[1736185423196,1.10345278,3663.9,3662.7,0.7805]
[1736185423379,1.65224598,3663.9,3662.7,1.13431741]
[1736185423580,1.65224598,3663.9,3662.8,0.02729862]
[1736185423828,1.65224598,3663.9,3662.7,0.7805]
[1736185424026,2.72965,3663.5,3662.8,0.02729665]
[1736185424230,2.72972,3663.4,3662.7,0.7805]
[1736185424437,2.72978,3663.3,3662.7,0.7805]
[1736185424591,2.73,3663.0,3662.7,0.7805]
[1736185425025,2.72985,3663.2,3662.7,0.7805]
[1736185425220,0.5487932,3663.9,3662.8,0.02730001]
[1736185425427,2.72948,3663.8,3662.8,2.73013]
[1736185425628,3.09361307,3664.2,3662.9,0.351063]
[1736185425840,2.72918,3664.1,3662.9,0.351063]
[1736185425991,2.7293,3664.0,3663.0,0.0272945]
[1736185426191,1.67632253,3664.6,3663.2,0.7805]
[1736185426192,3.0,3664.5,3663.2,0.7805]
[1736185426392,2.72897,3664.4,3663.4,0.7805]
[1736185426593,0.74989056,3664.3,3663.4,0.7805]
[1736185427000,3.09361307,3664.2,3663.4,0.7805]
[1736185427209,2.72955,3663.7,3662.2,0.7805]
[1736185427418,2.72956,3663.6,3662.5,0.7955]
[1736185427808,2.72956,3663.6,3662.5,3.52583]
[1736185428112,2.72956,3663.6,3662.6,0.40742354]
[1736185428314,2.72941,3663.8,3662.8,0.7858]
[1736185428519,2.72954,3663.7,3662.9,0.02729652]
[1736185428722,2.72957,3663.6,3662.9,0.02729652]
[1736185429038,3.09361307,3663.4,3662.4,1.29950542]
[1736185429199,2.73032,3662.6,3662.4,0.7511]
[1736185429535,6.78369,3662.5,3662.4,0.7511]
[1736185429735,2.96159,3662.5,3662.4,0.7511]
[1736185429908,2.1619,3662.5,3662.4,0.7511]
[1736185430231,2.73095,3661.8,3661.6,0.7544]
[1736185430433,2.73067,3662.1,3661.0,0.7544]
[1736185430434,5.0,3661.7,3661.0,0.7544]
[1736185430640,2.73111,3661.6,3661.0,0.7544]
[1736185430810,3.09361307,3662.1,3661.0,0.7544]
[1736185430995,2.73158,3660.9,3660.5,0.7544]
[1736185431716,2.73154,3661.0,3660.5,0.7544]
[1736185432022,2.73158,3660.9,3660.5,0.7544]
[1736185433002,3.0,3661.3,3660.5,0.7544]
[1736185433359,2.7315,3661.0,3660.5,0.7544]
[1736185434599,3.59478631,3662.2,3660.6,0.02731587]
[1736185434800,2.73095,3661.8,3660.6,2.75909587]
[1736185435108,2.73065,3662.2,3660.6,2.75909587]
[1736185435260,3.83376278,3662.6,3660.6,2.75909587]
[1736185435261,3.219593,3662.5,3660.9,2.73152]
[1736185435432,2.73067,3662.1,3661.0,0.354002]
[1736185435758,2.73084,3661.9,3661.0,0.354002]
[1736185436255,3.79178321,3662.4,3660.7,0.8085]
[1736185436458,3.0,3662.1,3660.7,0.8085]
[1736185436763,3.0,3662.1,3660.8,0.02731348]
[1736185436764,2.73112,3661.5,3660.8,0.02731348]
[1736185437054,2.73088,3661.9,3660.8,0.02731177]
[1736185437220,2.73112,3661.5,3660.8,0.02731177]
[1736185438133,2.7312,3661.4,3660.7,0.8085]
[1736185438327,2.73129,3661.3,3660.7,0.8085]
[1736185438951,0.65947863,3662.0,3660.8,0.02731363]
[1736185439454,2.73104,3661.7,3660.8,0.02731363]
[1736185439858,2.72777337,3661.6,3660.7,0.8085]
[1736185440373,2.72777337,3661.6,3660.8,0.02731184]
[1736185440667,2.72777337,3661.6,3660.7,0.8085]
[1736185440973,2.7309,3661.8,3660.8,0.02731185]
[1736185441173,2.7309,3661.8,3660.9,0.35675819]
[1736185441471,2.7308,3662.0,3661.0,0.02731185]
[1736185441631,2.7308,3662.0,3661.1,0.7503]
[1736185441828,2.73059,3662.2,3661.2,0.02730909]
[1736185442077,1.10345278,3663.0,3661.2,0.02730909]
[1736185442374,1.10345278,3663.0,3661.3,0.7503]
[1736185442605,1.10345278,3663.0,3660.7,3.59478631]
[1736185442606,1.10345278,3663.0,3661.6,0.7503]
[1736185442742,1.10345278,3663.0,3661.8,2.73087]
[1736185443080,4.10345278,3663.4,3661.7,0.35087233]
[1736185443275,1.10345278,3663.4,3661.7,0.02730299]
[1736185443573,3.83315278,3663.4,3662.2,0.8145]
[1736185443765,1.10345278,3663.4,3662.5,2.73034]
[1736185443949,1.10345278,3663.4,3662.6,0.02729836]
[1736185444152,1.67690112,3663.6,3662.9,0.8145]
[1736185444472,1.67690112,3663.6,3663.0,0.02729674]
[1736185444841,1.67690112,3663.6,3663.1,3.54439]
[1736185445034,1.67690112,3663.6,3663.2,0.02729423]
[1736185445267,1.67690112,3663.6,3663.2,2.75711423]
[1736185445450,1.67690112,3663.6,3663.3,3.08690142]
[1736185445645,1.67690112,3663.6,3663.4,0.02729309]
[1736185445849,1.67690112,3663.6,3663.5,0.8145]
[1736185446132,1.67690112,3663.6,3663.5,3.54413]
[1736185447510,3.0,3665.2,3663.6,0.7555]
[1736185447689,3.98792863,3665.1,3663.8,2.72933]
[1736185447869,3.98792863,3665.1,3663.9,0.02728787]
[1736185448074,8.72827,3665.4,3664.3,0.802]
[1736185448388,2.7283,3665.3,3664.4,0.02728512]
[1736185448602,8.72828,3665.4,3664.4,0.02728512]
[1736185448812,2.72831,3665.3,3664.3,0.802]
[1736185449414,2.72831,3665.3,3664.4,0.02728514]
[1736185449865,6.0,3665.4,3664.4,3.11207365]
[1736185450072,6.0,3665.4,3665.0,2.72847]
[1736185450281,6.0,3665.4,3665.1,3.58681113]
[1736185450715,6.0,3665.4,3665.1,0.8311]
[1736185450937,5.0,3665.3,3665.1,0.8311]
[1736185451230,3.92998,3665.3,3664.3,2.72901]
[1736185451410,5.7,3665.4,3664.5,0.7825]
[1736185451616,5.7,3665.4,3664.5,3.51138]
[1736185451800,5.7,3665.4,3664.5,0.7825]
[1736185452002,2.7283,3665.3,3664.5,0.7825]
[1736185452376,5.7,3665.4,3664.6,0.02728479]
[1736185452650,8.42823,3665.4,3664.6,0.02728479]
[1736185452812,2.72829,3665.3,3664.5,0.7825]
[1736185453134,2.72829,3665.3,3664.6,0.02728491]
[1736185453599,9.63286484,3665.4,3664.5,0.7825]
[1736185453775,3.0,3665.3,3664.5,0.7825]
[1736185453984,3.09004884,3665.0,3663.3,0.78548672]
[1736185454257,2.72869,3664.8,3663.3,0.78548672]
[1736185454740,2.72847,3665.1,3664.0,0.7582]
[1736185454882,2.72847,3665.1,3664.1,0.02728693]
[1736185455228,2.72829,3665.3,3664.1,2.75642693]
[1736185455394,2.72837,3665.2,3664.2,0.35146269]
[1736185455898,2.72882,3664.6,3664.0,0.7582]
[1736185456098,3.84544884,3665.0,3664.0,0.7582]
[1736185456304,2.72856,3665.0,3664.1,0.02728807]
[1736185456594,2.72862,3664.9,3664.0,0.7582]
[1736185456819,2.72867,3664.8,3664.0,0.7582]
[1736185457110,2.72844,3665.1,3664.1,0.02728807]
[1736185457297,2.72858,3665.0,3664.1,0.02728665]
[1736185457502,2.72858,3665.0,3664.0,0.7582]
[1736185457819,9.271066,3665.4,3664.2,2.7291]
[1736185458019,2.72836,3665.2,3664.0,3.48744]
[1736185458335,2.72836,3665.2,3664.0,0.7582]
[1736185458533,5.7,3665.4,3664.3,2.72898]
[1736185458745,8.42823,3665.4,3664.4,0.30291135]
[1736185458900,8.42823,3665.4,3664.5,0.7987]
[1736185459121,5.7,3665.4,3664.6,0.02728233]
[1736185459492,5.7,3665.4,3664.5,0.7987]
[1736185459694,2.72837,3665.2,3664.5,0.7987]
[1736185460048,2.72846,3665.1,3664.5,0.7987]
[1736185460347,2.72829,3665.3,3664.5,0.7987]
[1736185460652,2.72845,3665.1,3664.5,0.7987]
[1736185461011,3.0,3665.4,3664.5,0.7987]
[1736185461252,2.7283,3665.3,3664.5,0.7987]
[1736185461855,2.7283,3665.3,3664.6,0.02728303]
[1736185462216,3.0,3665.4,3664.6,0.02728301]
[1736185462962,3.0,3665.4,3664.7,3.51261]
[1736185463122,3.0,3665.4,3664.7,0.7839]
[1736185463600,3.09004884,3665.1,3663.7,0.7839]
[1736185463807,2.72911,3664.2,3663.7,0.7839]
[1736185464740,2.72918,3664.1,3663.7,0.7839]
[1736185464900,2.72903,3664.3,3663.7,0.7839]
[1736185465300,3.50605,3664.6,3663.7,0.7839]
[1736185466240,2.72919,3664.1,3663.7,0.7839]
[1736185466903,0.7772,3664.6,3663.7,0.7839]
[1736185467102,2.72912,3664.2,3663.7,0.7839]
[1736185467327,2.72898,3664.4,3663.7,0.7839]
[1736185467529,1.16392488,3664.6,3663.7,0.7839]
[1736185467732,2.72905,3664.3,3663.7,0.7839]
[1736185468133,1.85073488,3665.0,3663.8,0.0272914]
[1736185468443,3.81761536,3665.4,3663.8,0.0272914]
[1736185468633,0.96357842,3665.3,3663.9,2.72932]
[1736185468948,0.96357842,3665.3,3664.0,0.02728708]
[1736185469145,5.72009536,3665.4,3664.3,2.72902]
[1736185469345,2.99181536,3665.4,3664.5,3.48761]
[1736185469648,2.99181536,3665.4,3664.5,0.7588]
[1736185469649,2.72837,3665.2,3664.5,0.7588]
[1736185470011,2.99181536,3665.4,3664.6,0.02728307]
[1736185470210,5.72004536,3665.4,3664.6,0.02728307]
[1736185470450,2.7283,3665.3,3664.5,0.7588]
[1736185470710,2.7283,3665.3,3664.6,0.0272827]
[1736185471011,2.99181536,3665.4,3664.6,0.0272827]
[1736185471206,5.72003536,3665.4,3664.6,0.0272827]
[1736185471563,5.72003536,3665.4,3664.7,0.7926]
[1736185471564,2.99181536,3665.4,3664.7,0.7926]
[1736185471711,2.99181536,3665.4,3664.7,3.52131]
[1736185472048,2.99181536,3665.4,3665.2,35.0]
[1736185472544,2.99181536,3665.4,3665.3,0.7765]
[1736185472950,2.99181536,3665.4,3665.2,35.0]
[1736185472951,5.72002536,3665.4,3665.2,35.0]
[1736185473609,7.72828,3665.3,3664.9,0.7644]
[1736185473807,2.72846,3665.1,3664.9,0.7644]
[1736185474044,2.99181536,3665.4,3662.6,3.35721384]
[1736185474045,4.04048,3665.0,3664.2,0.7644]
[1736185474245,2.99181536,3665.4,3664.9,2.72856]
[1736185474446,2.99181536,3665.4,3665.0,0.7644]
[1736185474632,2.99181536,3665.4,3665.0,1.14097674]
[1736185475020,2.99181536,3665.4,3665.3,2.72828]
[1736185475635,2.99181536,3665.4,3665.3,37.72828]
[1736185475845,2.99181536,3665.4,3665.3,38.49268]
[1736185476210,2.99181536,3665.4,3665.3,41.58272884]
[1736185476411,2.72652,3667.7,3666.4,2.72742]
[1736185476612,3.18626728,3667.6,3666.6,0.8167]
[1736185476814,3.18626728,3667.6,3666.7,0.02726845]
[1736185477015,2.72667,3667.5,3666.8,35.0]
[1736185477250,2.72674,3667.4,3666.8,35.0]
[1736185477561,2.72683,3667.3,3666.8,35.0]
[1736185477873,8.36273184,3667.2,3666.8,35.0]
[1736185478043,5.0,3667.1,3666.8,35.0]
[1736185478217,2.72709,3666.9,3666.8,35.0]
[1736185478414,2.85143,3666.9,3666.8,35.7778]
[1736185478651,3.09004884,3668.3,3666.8,35.7778]
[1736185478851,3.09004884,3667.9,3666.8,35.7778]
[1736185479050,2.72679,3667.4,3666.8,35.7778]
[1736185479436,5.72649,3667.8,3666.9,0.02726846]
[1736185479639,2.72652,3667.7,3666.9,0.02726846]
[1736185480160,3.09004884,3667.5,3666.9,0.02726846]
[1736185480332,2.72688,3667.2,3666.8,35.7778]
[1736185480530,3.91445,3667.1,3666.8,35.7778]
[1736185480844,2.16302,3667.0,3666.1,0.7757]
[1736185481054,2.72694,3667.2,3666.2,0.02726988]
[1736185481239,2.72694,3667.2,3666.3,35.0]
[1736185481240,3.30863888,3667.2,3666.3,35.0]
[1736185481440,0.58169888,3667.2,3666.4,0.02726947]
[1736185481654,5.72674,3667.4,3666.4,0.02726947]
[1736185481860,3.0,3667.4,3666.4,0.02726844]
[1736185482677,3.30815688,3667.7,3666.5,2.72738]
[1736185482816,3.30815688,3667.7,3666.6,0.78476718]
[1736185483161,2.72644,3667.8,3666.6,0.7575]
[1736185483373,3.09004884,3667.9,3667.1,35.0]
[1736185483537,2.72666,3667.5,3667.1,35.0]
[1736185483732,3.0,3667.8,3667.1,35.0]
[1736185483954,2.72677,3667.4,3667.1,35.0]
[1736185484172,2.60928,3667.3,3667.1,35.0]
[1736185484386,2.72677,3667.4,3667.1,35.0]
[1736185484861,3.0,3667.8,3667.1,35.0]
[1736185485064,3.69138488,3667.8,3667.1,35.0]
[1736185485283,7.7265,3667.7,3667.1,35.0]
[1736185485482,2.72687,3667.2,3667.1,35.0]
[1736185485678,6.63741,3667.2,3667.1,35.0]
[1736185486006,7.31197,3667.2,3667.1,35.0]
[1736185486156,2.72675,3667.4,3667.1,35.0]
[1736185486355,2.39796,3667.3,3667.1,35.0]
[1736185486593,2.7268,3667.3,3667.1,35.0]
[1736185486803,7.72687,3667.2,3667.1,35.0]
[1736185487155,5.56578,3667.2,3667.1,35.0]
[1736185487586,2.72687,3667.2,3667.1,35.0]
[1736185487926,5.36186,3667.2,3667.1,35.0]
[1736185488192,2.907677,3667.2,3666.2,0.807]
[1736185488393,0.272687,3667.2,3666.3,0.02727119]
[1736185488691,2.7265,3667.7,3666.4,35.0]
[1736185488997,3.0,3667.4,3666.5,2.75463702]
[1736185489318,2.72652,3667.7,3666.6,3.53426]
[1736185489516,3.69138488,3667.8,3666.9,0.807]
[1736185489657,3.0,3667.8,3667.4,35.0]
[1736185489857,3.0,3668.2,3667.4,35.0]
[1736185490116,2.72665,3667.5,3667.4,35.0]
[1736185490260,5.72665,3667.5,3667.4,35.0]
[1736185490570,12.075982,3667.5,3667.4,35.0]
[1736185490760,2.72685,3667.3,3666.5,0.807]
[1736185491158,2.72685,3667.3,3667.0,35.0]
[1736185491371,4.20649,3667.2,3667.0,35.0]
[1736185491783,2.72673,3667.4,3667.0,35.0]
[1736185492008,3.799403,3667.4,3667.0,35.0]
[1736185492214,3.50357,3667.8,3667.0,35.0]
[1736185492215,2.72663,3667.6,3667.0,35.0]
[1736185492578,0.7771,3667.8,3667.0,35.0]
[1736185492778,2.72668,3667.5,3667.0,35.0]
[1736185493100,5.0,3667.4,3667.0,35.0]
[1736185493286,5.0,3667.7,3667.0,35.0]
[1736185493479,2.72677,3667.4,3667.0,35.0]
[1736185493676,4.41238,3667.3,3667.0,35.0]
[1736185494018,0.7582,3667.0,3665.9,0.816]
[1736185494181,2.72756,3666.3,3665.9,0.816]
[1736185494583,2.72756,3666.3,3666.0,35.0]
[1736185494781,3.31682,3666.2,3666.0,35.0]
[1736185495010,2.72769,3666.1,3666.0,35.0]
[1736185495191,7.72769,3666.1,3666.0,35.0]
[1736185497281,8.49009,3666.1,3666.0,35.0]
[1736185498001,5.0,3666.1,3666.0,35.0]
[1736185498192,2.72709,3666.9,3666.0,35.7929]
[1736185498393,3.66450588,3666.9,3666.1,0.02727433]
[1736185498587,2.72744,3666.5,3665.3,2.72825]
[1736185498801,2.72744,3666.5,3666.2,35.0]
[1736185498983,7.22411,3666.4,3666.2,35.0]
[1736185499182,2.72732,3666.6,3666.2,35.0]
[1736185499385,2.02763,3666.5,3666.2,35.0]
[1736185499613,2.7274,3666.5,3666.2,35.0]
[1736185500018,5.94336,3666.4,3666.2,35.0]
[1736185500216,2.72754,3666.3,3666.2,35.0]
[1736185500378,5.36598,3666.3,3666.2,35.0]
[1736185500582,8.36598,3666.3,3666.2,35.0]
[1736185500810,2.72812,3665.6,3665.0,0.795]
[1736185501192,2.72837,3665.2,3665.1,35.0]
[1736185501386,7.72837,3665.2,3665.1,35.0]
[1736185501583,8.501207,3665.2,3665.1,35.0]
[1736185501788,2.36966,3665.2,3665.1,35.0]
[1736185502523,7.72823,3665.4,3665.1,35.0]
[1736185502682,2.728,3665.7,3665.1,35.0]
[1736185502881,2.72761,3666.3,3665.2,0.02728331]
[1736185503086,2.72761,3666.3,3665.3,0.8279]
[1736185503325,0.64119948,3666.2,3665.5,35.0]
[1736185503507,2.72761,3666.3,3665.5,35.0]
[1736185503712,2.72761,3666.3,3665.3,0.8279]
[1736185503884,2.72732,3666.6,3665.4,0.02727833]
[1736185504295,2.72754,3666.4,3666.0,35.0]
[1736185504532,5.0,3666.3,3666.0,35.0]
[1736185504726,5.30668,3666.2,3666.0,35.0]
[1736185504904,3.0,3665.7,3664.6,2.72874]
[1736185505103,3.0,3665.7,3664.7,2.75594168]
[1736185505290,0.7661,3666.1,3664.8,35.0]
[1736185505291,2.72837,3665.2,3664.8,35.0]
[1736185505598,2.72851,3665.0,3664.8,35.0]
[1736185505807,2.30883,3664.9,3664.8,35.0]
[1736185506131,3.90777,3665.1,3664.8,35.0]
[1736185506457,5.72858,3664.9,3664.8,35.0]
[1736185506759,2.7291,3664.2,3663.3,0.75]
[1736185507046,2.7291,3664.2,3663.2,1.13661979]
[1736185507047,0.27291,3664.2,3663.9,35.0]
[1736185507276,2.72962,3663.6,3663.2,1.13661979]
[1736185507388,3.09004884,3664.0,3663.2,1.13661979]
[1736185507389,7.72969,3663.5,3663.2,1.13661979]
[1736185507593,2.72961,3663.6,3663.4,35.0]
[1736185507908,2.89121,3664.1,3663.4,35.0]
[1736185508345,0.162,3664.1,3663.4,35.0]
[1736185508491,2.7294,3663.8,3663.4,35.0]
[1736185508691,7.72948,3663.7,3663.4,35.0]
[1736185508891,3.79664,3663.6,3663.4,35.0]
[1736185509408,6.52619,3663.6,3663.4,35.0]
[1736185509606,3.09004884,3664.0,3663.4,35.0]
[1736185509607,7.72963,3663.5,3663.4,35.0]
[1736185511063,3.0,3663.4,3661.9,0.8246]
[1736185511352,2.73063,3662.2,3661.4,0.8246]
[1736185511506,0.7762,3662.5,3661.4,0.8246]
[1736185511507,2.73068,3662.1,3661.4,0.8246]
[1736185511845,3.09004884,3662.4,3661.4,0.8246]
[1736185512047,2.73097,3661.7,3661.4,0.8246]
[1736185512224,2.73104,3661.6,3660.9,1.94721979]
[1736185512396,2.73104,3661.6,3661.5,35.0]
[1736185512597,7.73104,3661.6,3661.5,35.0]
[1736185512835,6.54436,3661.6,3661.5,35.0]
[1736185514096,10.28884484,3661.6,3661.5,35.0]
[1736185518042,14.12084484,3661.6,3661.5,35.0]
[1736185518352,8.38980484,3661.6,3660.5,0.55134159]
[1736185518512,2.73135,3661.2,3660.5,0.55134159]
[1736185518701,2.73135,3661.2,3660.6,35.0]
[1736185518901,2.73144,3661.1,3660.6,35.0]
[1736185519409,2.73144,3661.1,3660.5,0.55134159]
[1736185519935,2.73144,3661.1,3660.4,0.7814]
[1736185520298,0.273135,3661.2,3660.4,0.7814]
[1736185520495,3.004495,3661.2,3660.4,1.32607456]
[1736185520698,0.3004495,3661.1,3660.4,0.7814]
[1736185521095,4.57648484,3661.6,3660.4,0.7814]
[1736185521333,3.0,3661.5,3660.4,0.7814]
[1736185521536,2.73149,3661.1,3660.4,0.7814]
[1736185522061,2.73151,3661.0,3660.4,0.7814]
[1736185522460,2.73176,3660.7,3659.7,0.7828]
[1736185522757,2.73186,3660.5,3659.7,0.7828]
[1736185523081,2.73197,3660.4,3659.7,0.7828]
[1736185523258,2.73213,3660.2,3659.7,0.7828]
[1736185523560,2.73213,3660.2,3659.3,0.8237]
[1736185523758,2.73219,3660.1,3659.4,0.0273239]
[1736185524162,3.09004884,3660.4,3659.4,0.56866371]
[1736185524365,3.88394884,3661.2,3659.6,0.8237]
[1736185524761,3.0,3661.1,3659.6,3.55622]
[1736185524938,3.0,3661.1,3659.6,0.8237]
[1736185524939,2.73172,3660.7,3659.6,0.8237]
[1736185525268,2.73158,3660.9,3659.8,2.73236]
[1736185525506,2.73158,3660.9,3659.9,0.02731899]
[1736185526757,3.0,3661.1,3659.9,0.02731899]
[1736185526758,1.67738201,3662.0,3660.0,0.7997]
[1736185526940,2.73112,3661.5,3660.4,2.73189]
[1736185527122,2.73123,3661.4,3660.5,0.7997]
[1736185527326,2.73161,3660.9,3659.5,0.13923637]
[1736185527528,2.73159,3660.9,3659.6,3.51996]
[1736185527740,2.73159,3660.9,3659.8,0.53977963]
[1736185527947,2.73159,3660.9,3659.9,0.02731883]
[1736185527948,3.66952188,3660.9,3659.9,0.02731883]
[1736185528187,3.09004884,3661.7,3660.2,2.73202]
[1736185528330,3.09004884,3660.9,3660.0,0.8332]
[1736185528530,2.73212,3660.2,3658.5,3.56656]
[1736185528744,3.09004884,3660.5,3658.8,2.73313]
[1736185528995,2.73228,3660.0,3658.8,2.73313]
[1736185529151,2.73231,3659.9,3658.8,2.73313]
[1736185529361,2.73236,3659.9,3658.7,3.56638]
[1736185529690,3.09004884,3660.1,3659.3,0.54442631]
[1736185529848,6.13123372,3660.1,3659.3,0.54442631]
[1736185530245,3.04118488,3660.1,3659.3,0.54442631]
[1736185530527,0.30900488,3660.1,3659.3,0.54442631]
[1736185530648,2.73235,3659.9,3659.3,0.54442631]
[1736185530850,0.30900488,3660.1,3659.3,0.54442631]
[1736185531051,2.73241,3659.8,3659.3,0.54442631]
[1736185531582,0.30410349,3660.0,3659.3,0.54442631]
[1736185532097,3.03634349,3660.0,3659.3,0.54442631]
[1736185532498,0.30410349,3660.0,3659.3,0.54442631]
[1736185532699,2.73232,3659.9,3659.3,0.54442631]
[1736185533146,2.73213,3660.2,3659.3,0.54442631]
[1736185533353,0.156,3660.4,3659.5,0.7659]
[1736185533354,5.88795,3660.4,3659.5,0.7659]
[1736185533644,5.73195,3660.4,3659.6,0.0273224]
[1736185533923,2.73136,3661.2,3660.0,2.73217]
[1736185534124,2.73136,3661.2,3660.2,0.8286]
[1736185534431,2.73143,3661.1,3660.2,0.8286]
[1736185534612,3.68175,3661.6,3660.3,0.02731688]
[1736185534815,2.73143,3661.1,3660.2,0.8286]
[1736185535123,2.73139,3661.2,3660.2,3.56066]
[1736185535422,2.73164,3660.8,3660.2,0.8286]
[1736185535912,2.73149,3661.0,3660.2,0.8286]
[1736185536317,5.73164,3660.8,3659.5,0.55240855]
[1736185536714,0.7947,3660.6,3659.5,0.55240855]
[1736185536917,0.652634,3660.5,3659.6,0.85592355]
[1736185537104,3.0,3660.4,3659.6,0.8286]
[1736185537311,3.384564,3660.5,3659.7,0.02732049]
[1736185537312,2.73193,3660.5,3659.7,0.02732049]
[1736185537631,2.73179,3660.7,3659.7,0.02732049]
[1736185538033,3.0,3660.8,3659.6,0.8286]
[1736185538230,2.7321,3660.2,3659.6,0.8286]
[1736185538605,6.09004884,3660.5,3659.6,0.8286]
[1736185538808,2.73238,3659.9,3659.2,0.7662]
[1736185539003,2.73217,3660.1,3659.2,0.7662]
[1736185539207,2.73217,3660.1,3659.2,0.79352511]
[1736185539732,2.73202,3660.3,3659.3,0.02732513]
[1736185540091,6.09004884,3660.5,3659.3,0.02732513]
[1736185540314,6.09004884,3660.5,3659.2,3.85168051]
[1736185540315,2.7321,3660.2,3659.2,3.85168051]
[1736185540741,2.73219,3660.1,3659.2,1.11885051]
[1736185540942,2.732,3660.4,3659.4,0.55089518]
[1736185541117,2.73204,3660.3,3659.5,0.02732252]
[1736185542122,2.73179,3660.6,3659.6,0.8305]
[1736185542328,2.73179,3660.6,3659.7,0.02732072]
[1736185542552,0.88216088,3660.7,3659.6,0.8305]
[1736185543108,2.732,3660.4,3659.6,0.8305]
[1736185543360,2.73211,3660.2,3659.6,0.8305]
[1736185543508,2.73204,3660.3,3659.6,0.8305]
[1736185543947,2.73213,3660.2,3659.6,0.8305]
[1736185544716,0.88216088,3660.7,3659.6,0.8305]
[1736185545058,2.73246,3659.7,3659.4,0.55089518]
[1736185545271,2.7323,3660.0,3659.4,0.55089518]
[1736185545475,2.73238,3659.9,3659.4,0.55089518]
[1736185546239,2.73218,3660.1,3659.4,0.55089518]
[1736185547014,2.73224,3660.0,3659.4,0.55089518]